[Event "*** Titled Tuesday Blitz"]
[Site "Chess.com"]
[Date "2020.04.07"]
[Round "6"]
[White "Flawless_Fighter"]
[Black "silverback96"]
[Result "1-0"]
[WhiteElo "2569"]
[BlackElo "2135"]
[TimeControl "180+1"]
[EndTime "14:05:25 PDT"]
[Termination "Flawless_Fighter won by resignation"]

1. e4 {[%clk 0:02:59.9]} 1... e6 {[%clk 0:02:59.9]} 2. d4 {[%clk 0:02:58.1]}
2... d5 {[%clk 0:03:00.4]} 3. Nc3 {[%clk 0:02:59]} 3... Bb4 {[%clk 0:02:56.1]}
4. e5 {[%clk 0:02:58.9]} 4... c5 {[%clk 0:02:54.8]} 5. a3 {[%clk 0:02:59.3]}
5... Bxc3+ {[%clk 0:02:54.8]} 6. bxc3 {[%clk 0:03:00.2]} 6... Ne7 {[%clk
0:02:53.8]} 7. Nf3 {[%clk 0:02:59.6]} 7... Qc7 {[%clk 0:02:48]} 8. a4 {[%clk
0:02:55.8]} 8... b6 {[%clk 0:02:42.1]} 9. Bb5+ {[%clk 0:02:51.9]} 9... Bd7
{[%clk 0:02:41.7]} 10. Bd3 {[%clk 0:02:51.3]} 10... c4 {[%clk 0:02:39.9]} 11.
Be2 {[%clk 0:02:51.3]} 11... h6 {[%clk 0:02:33.5]} 12. h3 {[%clk 0:02:49.1]}
12... Nbc6 {[%clk 0:02:25]} 13. O-O {[%clk 0:02:48.7]} 13... O-O-O {[%clk
0:02:19.1]} 14. Ba3 {[%clk 0:02:48.6]} 14... Rdg8 {[%clk 0:02:14.3]} 15. Nh2
{[%clk 0:02:47]} 15... g5 {[%clk 0:02:13]} 16. Bh5 {[%clk 0:02:43.4]} 16... Ng6
{[%clk 0:02:08.2]} 17. Ng4 {[%clk 0:02:35.7]} 17... Nf4 {[%clk 0:01:42.6]} 18.
Bd6 {[%clk 0:02:27.9]} 18... Qb7 {[%clk 0:01:33.8]} 19. Nf6 {[%clk 0:02:16]}
19... Rg7 {[%clk 0:01:30]} 20. g3 {[%clk 0:02:08.5]} 20... Nxh5 {[%clk 0:01:29]}
21. Qxh5 {[%clk 0:02:07.3]} 21... Be8 {[%clk 0:01:02.7]} 22. Kg2 {[%clk
0:02:02.8]} 22... Ne7 {[%clk 0:00:56]} 23. a5 {[%clk 0:01:47.4]} 23... b5 {[%clk
0:00:51.7]} 24. a6 {[%clk 0:01:47.2]} 1-0

[Event "*** Titled Tuesday Blitz"]
[Site "Chess.com"]
[Date "2020.04.07"]
[Round "6"]
[White "meridaandres"]
[Black "Alopekos"]
[Result "0-1"]
[WhiteElo "2279"]
[BlackElo "2447"]
[TimeControl "180+1"]
[EndTime "14:05:25 PDT"]
[Termination "Alopekos won by resignation"]

1. e4 {[%clk 0:03:00.9]} 1... c5 {[%clk 0:02:59.9]} 2. c3 {[%clk 0:03:00.6]}
2... g6 {[%clk 0:02:52]} 3. d4 {[%clk 0:02:59.6]} 3... cxd4 {[%clk 0:02:52.8]}
4. cxd4 {[%clk 0:02:59.7]} 4... d5 {[%clk 0:02:50.3]} 5. exd5 {[%clk 0:02:57.4]}
5... Nf6 {[%clk 0:02:49.4]} 6. Qb3 {[%clk 0:02:57.7]} 6... Qxd5 {[%clk
0:02:13.9]} 7. Bc4 {[%clk 0:02:53.6]} 7... Qxg2 {[%clk 0:02:13.8]} 8. Bxf7+
{[%clk 0:02:53.2]} 8... Kd8 {[%clk 0:02:14.3]} 9. Qf3 {[%clk 0:02:17.8]} 9...
Bh3 {[%clk 0:02:13.6]} 10. Nd2 {[%clk 0:01:43.8]} 10... Nc6 {[%clk 0:02:03.8]}
11. Qxh3 {[%clk 0:01:42.4]} 11... Qxh1 {[%clk 0:02:02.2]} 12. Nf3 {[%clk
0:01:27.1]} 12... Nxd4 {[%clk 0:01:50]} 13. Nxd4 {[%clk 0:01:25.6]} 13... Qxg1+
{[%clk 0:01:49]} 14. Kd2 {[%clk 0:01:24.7]} 14... e5 {[%clk 0:01:22]} 15. Qe6
{[%clk 0:00:58.6]} 15... Qxf2+ {[%clk 0:01:09.5]} 16. Ne2 {[%clk 0:00:55.3]}
16... Ne4+ {[%clk 0:01:05]} 17. Kd1 {[%clk 0:00:52.6]} 17... Qf1+ {[%clk
0:01:01.6]} 18. Kc2 {[%clk 0:00:53]} 18... Qxe2+ {[%clk 0:01:01.8]} 19. Kb3
{[%clk 0:00:52.9]} 19... Nc5+ {[%clk 0:01:00.6]} 0-1

[Event "*** Titled Tuesday Blitz"]
[Site "Chess.com"]
[Date "2020.04.07"]
[Round "6"]
[White "Sebastian"]
[Black "swimmerchess"]
[Result "0-1"]
[WhiteElo "3014"]
[BlackElo "2843"]
[TimeControl "180+1"]
[EndTime "14:05:27 PDT"]
[Termination "swimmerchess won by resignation"]

1. d4 {[%clk 0:03:00.9]} 1... Nf6 {[%clk 0:03:00]} 2. Nf3 {[%clk 0:03:01.2]}
2... g6 {[%clk 0:03:00.3]} 3. e3 {[%clk 0:03:01.4]} 3... Bg7 {[%clk 0:03:00.7]}
4. Be2 {[%clk 0:03:02.3]} 4... O-O {[%clk 0:03:01.1]} 5. O-O {[%clk 0:03:03]}
5... d6 {[%clk 0:03:01.9]} 6. c4 {[%clk 0:03:02.8]} 6... Nbd7 {[%clk 0:02:59.8]}
7. Nc3 {[%clk 0:03:02.9]} 7... e5 {[%clk 0:03:00.2]} 8. Qc2 {[%clk 0:03:03.4]}
8... Re8 {[%clk 0:02:58.8]} 9. Rd1 {[%clk 0:03:04]} 9... e4 {[%clk 0:02:56.2]}
10. Nd2 {[%clk 0:03:03]} 10... Qe7 {[%clk 0:02:56.4]} 11. b4 {[%clk 0:03:03.7]}
11... Nf8 {[%clk 0:02:56.3]} 12. Bb2 {[%clk 0:03:04.3]} 12... h5 {[%clk
0:02:55.4]} 13. Rac1 {[%clk 0:03:03.1]} 13... Bf5 {[%clk 0:02:55.4]} 14. b5
{[%clk 0:02:51.4]} 14... N8h7 {[%clk 0:02:52.2]} 15. Bf1 {[%clk 0:02:44.1]}
15... h4 {[%clk 0:02:46.7]} 16. h3 {[%clk 0:02:43.1]} 16... Ng5 {[%clk
0:02:45.9]} 17. Ne2 {[%clk 0:02:40]} 17... Nf3+ {[%clk 0:02:33.2]} 18. Kh1
{[%clk 0:02:37.5]} 18... Qd7 {[%clk 0:02:16.3]} 19. c5 {[%clk 0:02:28.3]} 19...
Nxd2 {[%clk 0:01:47.4]} 20. Rxd2 {[%clk 0:02:26.9]} 20... Qxb5 {[%clk
0:01:46.2]} 21. Ng3 {[%clk 0:02:11.4]} 21... Qd7 {[%clk 0:01:43]} 22. Nxf5
{[%clk 0:02:11.8]} 22... Qxf5 {[%clk 0:01:43.9]} 23. Qb3 {[%clk 0:02:06]} 23...
b6 {[%clk 0:01:09.5]} 24. cxd6 {[%clk 0:02:05.3]} 24... cxd6 {[%clk 0:01:10.4]}
25. Rc7 {[%clk 0:01:56.5]} 25... d5 {[%clk 0:01:04.8]} 26. Rdc2 {[%clk
0:01:53.6]} 26... Rec8 {[%clk 0:00:59.2]} 27. Ba3 {[%clk 0:01:45.8]} 27... Rxc7
{[%clk 0:00:57.7]} 28. Rxc7 {[%clk 0:01:45.6]} 28... Qxf2 {[%clk 0:00:58.6]} 29.
Bb5 {[%clk 0:01:23.1]} 29... Qe1+ {[%clk 0:00:56.5]} 30. Kh2 {[%clk 0:01:23]}
30... Qg3+ {[%clk 0:00:57.4]} 31. Kh1 {[%clk 0:01:22.5]} 31... Qxc7 {[%clk
0:00:58.3]} 0-1

[Event "*** Titled Tuesday Blitz"]
[Site "Chess.com"]
[Date "2020.04.07"]
[Round "6"]
[White "BakaPG"]
[Black "2165149677570"]
[Result "1-0"]
[WhiteElo "2669"]
[BlackElo "2368"]
[TimeControl "180+1"]
[EndTime "14:05:30 PDT"]
[Termination "BakaPG won by resignation"]

1. e4 {[%clk 0:02:59.7]} 1... c5 {[%clk 0:03:00.1]} 2. Nf3 {[%clk 0:02:58.9]}
2... d6 {[%clk 0:03:00.3]} 3. d4 {[%clk 0:02:57.5]} 3... cxd4 {[%clk 0:03:01.2]}
4. Nxd4 {[%clk 0:02:58.2]} 4... Nf6 {[%clk 0:03:01]} 5. Nc3 {[%clk 0:02:58.3]}
5... a6 {[%clk 0:03:01.5]} 6. Be3 {[%clk 0:02:57.5]} 6... e5 {[%clk 0:03:01.9]}
7. Nb3 {[%clk 0:02:56.8]} 7... Be6 {[%clk 0:03:02]} 8. Qd2 {[%clk 0:02:56]} 8...
Be7 {[%clk 0:03:01.6]} 9. f3 {[%clk 0:02:55.1]} 9... O-O {[%clk 0:03:02.1]} 10.
O-O-O {[%clk 0:02:51.9]} 10... Nbd7 {[%clk 0:03:02.6]} 11. g4 {[%clk 0:02:51.3]}
11... b5 {[%clk 0:03:03.1]} 12. g5 {[%clk 0:02:51]} 12... b4 {[%clk 0:03:03.7]}
13. Ne2 {[%clk 0:02:51.1]} 13... Ne8 {[%clk 0:03:03.2]} 14. Kb1 {[%clk
0:02:49.6]} 14... a5 {[%clk 0:03:03.4]} 15. Ng3 {[%clk 0:02:42.8]} 15... Nc7
{[%clk 0:02:53.1]} 16. Nf5 {[%clk 0:02:40.2]} 16... Bxf5 {[%clk 0:02:53.5]} 17.
exf5 {[%clk 0:02:39.9]} 17... d5 {[%clk 0:02:54]} 18. Rg1 {[%clk 0:02:38.9]}
18... a4 {[%clk 0:02:45.7]} 19. Nc1 {[%clk 0:02:36.3]} 19... d4 {[%clk
0:02:24.3]} 20. f6 {[%clk 0:02:31.1]} 20... Bd6 {[%clk 0:02:24.5]} 21. fxg7
{[%clk 0:02:27.6]} 21... Re8 {[%clk 0:02:24.9]} 22. h4 {[%clk 0:02:09]} 22...
Nd5 {[%clk 0:02:24.8]} 23. Bf2 {[%clk 0:02:06.1]} 23... Nc5 {[%clk 0:02:12.3]}
24. g6 {[%clk 0:02:01.2]} 24... hxg6 {[%clk 0:02:09.9]} 25. Qh6 {[%clk
0:01:55.4]} 25... f6 {[%clk 0:01:54.6]} 26. Bc4 {[%clk 0:01:53.5]} 26... Bc7
{[%clk 0:01:53.3]} 27. Bxd4 {[%clk 0:01:45.5]} 27... exd4 {[%clk 0:01:52.8]} 28.
Rxd4 {[%clk 0:01:44.9]} 28... Re5 {[%clk 0:01:53.5]} 29. Rxg6 {[%clk 0:01:34.5]}
29... Ne6 {[%clk 0:01:44]} 30. Rxd5 {[%clk 0:01:28.4]} 30... Rxd5 {[%clk
0:01:44.3]} 31. Bxd5 {[%clk 0:01:27.3]} 31... Qxd5 {[%clk 0:01:44.3]} 32. Qh8+
{[%clk 0:01:27.2]} 32... Kf7 {[%clk 0:01:44.7]} 33. g8=Q+ {[%clk 0:01:27.3]}
33... Rxg8 {[%clk 0:01:45.1]} 34. Qxf6+ {[%clk 0:01:22.5]} 34... Ke8 {[%clk
0:01:44.7]} 35. Rxg8+ {[%clk 0:01:21.2]} 35... Kd7 {[%clk 0:01:45.2]} 36. Qf7+
{[%clk 0:01:17.5]} 36... Kc6 {[%clk 0:01:40]} 37. Rg6 {[%clk 0:01:16.2]} 37...
Kd6 {[%clk 0:01:38.6]} 38. f4 {[%clk 0:01:10.8]} 38... a3 {[%clk 0:01:38.3]} 39.
f5 {[%clk 0:01:09.5]} 39... axb2 {[%clk 0:01:36.4]} 40. Qxe6+ {[%clk 0:01:09]}
1-0

[Event "*** Titled Tuesday Blitz"]
[Site "Chess.com"]
[Date "2020.04.07"]
[Round "6"]
[White "piscatorox"]
[Black "Kumi29"]
[Result "0-1"]
[WhiteElo "2250"]
[BlackElo "2443"]
[TimeControl "180+1"]
[EndTime "14:05:34 PDT"]
[Termination "Kumi29 won by resignation"]

1. e4 {[%clk 0:03:00.9]} 1... e6 {[%clk 0:03:00.2]} 2. d4 {[%clk 0:02:59.8]}
2... d5 {[%clk 0:03:00.9]} 3. e5 {[%clk 0:02:59.8]} 3... c5 {[%clk 0:03:01]} 4.
c3 {[%clk 0:03:00.3]} 4... Nc6 {[%clk 0:03:01.5]} 5. Nf3 {[%clk 0:03:00.6]} 5...
Nh6 {[%clk 0:03:02.2]} 6. Bxh6 {[%clk 0:02:53.6]} 6... gxh6 {[%clk 0:03:03.1]}
7. a3 {[%clk 0:02:40.2]} 7... Bg7 {[%clk 0:03:02.1]} 8. b4 {[%clk 0:02:32.6]}
8... cxd4 {[%clk 0:03:00.4]} 9. cxd4 {[%clk 0:02:32.4]} 9... O-O {[%clk
0:02:59.6]} 10. Bd3 {[%clk 0:02:29]} 10... f6 {[%clk 0:02:57.8]} 11. exf6 {[%clk
0:02:18.5]} 11... Qxf6 {[%clk 0:02:57.3]} 12. Bc2 {[%clk 0:02:04.1]} 12... Nxd4
{[%clk 0:02:54.1]} 13. Qxd4 {[%clk 0:01:38.5]} 13... Qxd4 {[%clk 0:02:53.8]} 14.
Nxd4 {[%clk 0:01:38.1]} 14... Bxd4 {[%clk 0:02:54.7]} 15. Ra2 {[%clk 0:01:38.2]}
15... Bxf2+ {[%clk 0:02:51.4]} 16. Ke2 {[%clk 0:01:37.7]} 16... e5 {[%clk
0:02:51.1]} 17. Nc3 {[%clk 0:01:33.7]} 17... Bg4+ {[%clk 0:02:43.8]} 18. Kd2
{[%clk 0:01:29]} 18... d4 {[%clk 0:02:31.7]} 19. Bb3+ {[%clk 0:01:25.8]} 19...
Kg7 {[%clk 0:02:28.7]} 20. Nd5 {[%clk 0:01:16.7]} 20... e4 {[%clk 0:02:20.6]}
21. Rc1 {[%clk 0:01:10.5]} 21... e3+ {[%clk 0:01:47.3]} 22. Kd3 {[%clk
0:01:09.8]} 22... Bf5+ {[%clk 0:01:45.9]} 23. Kxd4 {[%clk 0:01:06.1]} 23... e2+
{[%clk 0:01:43.8]} 24. Ke5 {[%clk 0:01:04]} 24... Rae8+ {[%clk 0:01:42]} 25. Kd6
{[%clk 0:01:01.5]} 25... Re6+ {[%clk 0:01:39]} 26. Kd7 {[%clk 0:00:57.2]} 26...
Rf7+ {[%clk 0:01:33.3]} 27. Kd8 {[%clk 0:00:55.1]} 27... Bh4+ {[%clk 0:01:24.8]}
0-1

[Event "*** Titled Tuesday Blitz"]
[Site "Chess.com"]
[Date "2020.04.07"]
[Round "6"]
[White "imdvb6307"]
[Black "AlanZhang"]
[Result "1-0"]
[WhiteElo "2395"]
[BlackElo "2149"]
[TimeControl "180+1"]
[EndTime "14:05:39 PDT"]
[Termination "imdvb6307 won by resignation"]

1. c4 {[%clk 0:02:59.7]} 1... e6 {[%clk 0:02:00.6]} 2. Nf3 {[%clk 0:02:54.3]}
2... d5 {[%clk 0:02:00.3]} 3. g3 {[%clk 0:02:51.3]} 3... dxc4 {[%clk 0:01:58.6]}
4. Bg2 {[%clk 0:02:50.6]} 4... c6 {[%clk 0:01:57.8]} 5. O-O {[%clk 0:02:47.6]}
5... Nf6 {[%clk 0:01:57.3]} 6. Qc2 {[%clk 0:02:45.3]} 6... b5 {[%clk 0:01:57.2]}
7. b3 {[%clk 0:02:44.3]} 7... cxb3 {[%clk 0:01:56.4]} 8. axb3 {[%clk 0:02:44.5]}
8... Bb7 {[%clk 0:01:57]} 9. d4 {[%clk 0:02:39.1]} 9... Be7 {[%clk 0:01:56.1]}
10. Ba3 {[%clk 0:02:38.1]} 10... O-O {[%clk 0:01:55.4]} 11. Bxe7 {[%clk
0:02:28.1]} 11... Qxe7 {[%clk 0:01:56.3]} 12. Ne5 {[%clk 0:02:28.4]} 12... Qc7
{[%clk 0:01:51.2]} 13. Rc1 {[%clk 0:02:23.2]} 13... Nd5 {[%clk 0:01:49.6]} 14.
Nd3 {[%clk 0:02:18.5]} 14... a5 {[%clk 0:01:43.4]} 15. Nc3 {[%clk 0:02:10.5]}
15... Nxc3 {[%clk 0:01:39.2]} 16. Qxc3 {[%clk 0:02:09.6]} 16... Nd7 {[%clk
0:01:38.3]} 17. Nc5 {[%clk 0:02:03.4]} 17... Nxc5 {[%clk 0:01:37]} 18. Qxc5
{[%clk 0:02:02.4]} 18... Rac8 {[%clk 0:01:32.3]} 19. Ra2 {[%clk 0:01:55.4]}
19... Rfd8 {[%clk 0:01:32]} 20. e3 {[%clk 0:01:49.6]} 20... Rd6 {[%clk
0:01:19.8]} 21. Rca1 {[%clk 0:01:43.8]} 21... Ra8 {[%clk 0:01:12.9]} 22. Qc3
{[%clk 0:01:41.4]} 22... c5 {[%clk 0:01:03.6]} 23. Qxc5 {[%clk 0:01:37.4]} 23...
Bc6 {[%clk 0:00:49.9]} 24. Rc1 {[%clk 0:01:26.3]} 24... Rc8 {[%clk 0:00:47.4]}
25. Rac2 {[%clk 0:01:26]} 25... Qb7 {[%clk 0:00:37.5]} 26. Qxd6 {[%clk
0:01:17.1]} 1-0

[Event "*** Titled Tuesday Blitz"]
[Site "Chess.com"]
[Date "2020.04.07"]
[Round "6"]
[White "Algeriano22"]
[Black "Viuvanegra"]
[Result "1-0"]
[WhiteElo "2656"]
[BlackElo "1946"]
[TimeControl "180+1"]
[EndTime "14:05:45 PDT"]
[Termination "Algeriano22 won by checkmate"]

1. e4 {[%clk 0:02:59.7]} 1... c5 {[%clk 0:02:58.6]} 2. Nf3 {[%clk 0:02:59.7]}
2... Nc6 {[%clk 0:02:57.9]} 3. Bb5 {[%clk 0:02:59.3]} 3... e5 {[%clk 0:02:57.4]}
4. O-O {[%clk 0:02:57.7]} 4... Bd6 {[%clk 0:02:55.2]} 5. c3 {[%clk 0:02:56.7]}
5... Nge7 {[%clk 0:02:53.8]} 6. d4 {[%clk 0:02:56.7]} 6... cxd4 {[%clk
0:02:54.3]} 7. cxd4 {[%clk 0:02:56.7]} 7... exd4 {[%clk 0:02:54.3]} 8. Nxd4
{[%clk 0:02:56.5]} 8... a6 {[%clk 0:02:50.4]} 9. Ba4 {[%clk 0:02:55]} 9... Qc7
{[%clk 0:02:49.2]} 10. Nf3 {[%clk 0:02:51.1]} 10... O-O {[%clk 0:02:47.1]} 11.
Nc3 {[%clk 0:02:51.2]} 11... Ne5 {[%clk 0:02:34.1]} 12. Nxe5 {[%clk 0:02:45.1]}
12... Bxe5 {[%clk 0:02:33.5]} 13. f4 {[%clk 0:02:45.3]} 13... Bxc3 {[%clk
0:02:30.4]} 14. bxc3 {[%clk 0:02:44.7]} 14... Qxc3 {[%clk 0:02:29.2]} 15. Rb1
{[%clk 0:02:44.8]} 15... b5 {[%clk 0:02:26.6]} 16. Bc2 {[%clk 0:02:44]} 16...
Ng6 {[%clk 0:02:15.2]} 17. Bb2 {[%clk 0:02:39.4]} 17... Qc5+ {[%clk 0:02:14]}
18. Bd4 {[%clk 0:02:39.2]} 18... Qe7 {[%clk 0:02:04.3]} 19. e5 {[%clk
0:02:24.5]} 19... d6 {[%clk 0:02:00.9]} 20. exd6 {[%clk 0:02:12.6]} 20... Qxd6
{[%clk 0:01:56.5]} 21. f5 {[%clk 0:02:12.3]} 21... Ne5 {[%clk 0:01:42.5]} 22. f6
{[%clk 0:02:10.2]} 22... gxf6 {[%clk 0:01:25.9]} 23. Kh1 {[%clk 0:02:05.1]}
23... Bg4 {[%clk 0:00:30.7]} 24. Qd2 {[%clk 0:01:59.1]} 24... Nc4 {[%clk
0:00:26.4]} 25. Qh6 {[%clk 0:01:53.1]} 25... Ne5 {[%clk 0:00:20.1]} 26. Qxh7#
{[%clk 0:01:51.3]} 1-0

[Event "*** Titled Tuesday Blitz"]
[Site "Chess.com"]
[Date "2020.04.07"]
[Round "6"]
[White "swayamsm"]
[Black "SavelievAlexei"]
[Result "1-0"]
[WhiteElo "2589"]
[BlackElo "2420"]
[TimeControl "180+1"]
[EndTime "14:05:47 PDT"]
[Termination "swayamsm won by resignation"]

1. d4 {[%clk 0:03:00.9]} 1... Nf6 {[%clk 0:02:47.3]} 2. Nf3 {[%clk 0:03:01.2]}
2... e6 {[%clk 0:02:47.4]} 3. Bf4 {[%clk 0:03:01.4]} 3... c5 {[%clk 0:02:43.1]}
4. e3 {[%clk 0:03:01.2]} 4... Nc6 {[%clk 0:02:41.9]} 5. Nbd2 {[%clk 0:02:57.6]}
5... d5 {[%clk 0:02:38.4]} 6. c3 {[%clk 0:02:56.4]} 6... Bd6 {[%clk 0:02:38.6]}
7. Bg3 {[%clk 0:02:55.6]} 7... O-O {[%clk 0:02:38.8]} 8. Bd3 {[%clk 0:02:55.6]}
8... Re8 {[%clk 0:02:38.3]} 9. Ne5 {[%clk 0:02:43.9]} 9... Bxe5 {[%clk
0:02:36.9]} 10. dxe5 {[%clk 0:02:44.8]} 10... Nd7 {[%clk 0:02:36.6]} 11. f4
{[%clk 0:02:35.3]} 11... c4 {[%clk 0:02:36.4]} 12. Bc2 {[%clk 0:02:28.8]} 12...
Qb6 {[%clk 0:02:36.9]} 13. O-O {[%clk 0:02:12.1]} 13... Qxe3+ {[%clk 0:02:36.7]}
14. Kh1 {[%clk 0:02:04.6]} 14... Qc5 {[%clk 0:02:34.7]} 15. Nf3 {[%clk
0:02:03.7]} 15... g6 {[%clk 0:02:30.2]} 16. Ng5 {[%clk 0:01:53]} 16... Qf8
{[%clk 0:02:28.5]} 17. Qg4 {[%clk 0:01:48]} 17... b6 {[%clk 0:02:18.6]} 18. Rad1
{[%clk 0:01:37.4]} 18... Bb7 {[%clk 0:01:55.5]} 19. Bh4 {[%clk 0:01:33.9]} 19...
Nc5 {[%clk 0:01:36.1]} 20. Rf3 {[%clk 0:01:27]} 20... Ne7 {[%clk 0:01:29.8]} 21.
Nxh7 {[%clk 0:01:18.8]} 21... Kxh7 {[%clk 0:01:23.9]} 22. Rh3 {[%clk 0:01:15.5]}
22... Ng8 {[%clk 0:00:52.2]} 23. Bg5+ {[%clk 0:01:04.4]} 23... Kg7 {[%clk
0:00:51.4]} 24. Qh4 {[%clk 0:01:04]} 1-0

[Event "*** Titled Tuesday Blitz"]
[Site "Chess.com"]
[Date "2020.04.07"]
[Round "6"]
[White "Vusatiuk_Vladimir"]
[Black "Bastiandash"]
[Result "1-0"]
[WhiteElo "2376"]
[BlackElo "1960"]
[TimeControl "180+1"]
[EndTime "14:05:53 PDT"]
[Termination "Vusatiuk_Vladimir won on time"]

1. e4 {[%clk 0:02:55.5]} 1... c5 {[%clk 0:02:58.1]} 2. Nf3 {[%clk 0:02:55.7]}
2... e6 {[%clk 0:02:58.4]} 3. g3 {[%clk 0:02:55.3]} 3... a6 {[%clk 0:02:58.6]}
4. Bg2 {[%clk 0:02:55.3]} 4... b5 {[%clk 0:02:57.7]} 5. O-O {[%clk 0:02:54.3]}
5... Bb7 {[%clk 0:02:58.2]} 6. d4 {[%clk 0:02:47]} 6... cxd4 {[%clk 0:02:57]} 7.
Nxd4 {[%clk 0:02:45.9]} 7... Nf6 {[%clk 0:02:53.6]} 8. Nc3 {[%clk 0:02:37.8]}
8... b4 {[%clk 0:02:45.3]} 9. e5 {[%clk 0:02:18.9]} 9... Bxg2 {[%clk 0:02:16.6]}
10. Kxg2 {[%clk 0:02:17.9]} 10... bxc3 {[%clk 0:02:15.3]} 11. exf6 {[%clk
0:02:17.6]} 11... gxf6 {[%clk 0:01:48.6]} 12. Qf3 {[%clk 0:02:09.2]} 12... Ra7
{[%clk 0:01:46.8]} 13. bxc3 {[%clk 0:02:07.2]} 13... Qc7 {[%clk 0:01:46.4]} 14.
Qxf6 {[%clk 0:02:00.3]} 14... Rg8 {[%clk 0:01:44]} 15. Bf4 {[%clk 0:01:49.1]}
15... Bd6 {[%clk 0:00:59.5]} 16. Nf5 {[%clk 0:01:45]} 16... Qc6+ {[%clk
0:00:06.4]} 17. Kg1 {[%clk 0:01:44.4]} 17... Bf8 {[%clk 0:00:02.5]} 18. Bxb8
{[%clk 0:01:37.1]} 18... Rb7 {[%clk 0:00:03]} 19. Rab1 {[%clk 0:01:32]} 1-0

[Event "*** Titled Tuesday Blitz"]
[Site "Chess.com"]
[Date "2020.04.07"]
[Round "6"]
[White "valeriocarnicelli"]
[Black "plumalka"]
[Result "0-1"]
[WhiteElo "2590"]
[BlackElo "2412"]
[TimeControl "180+1"]
[EndTime "14:05:55 PDT"]
[Termination "plumalka won by resignation"]

1. e4 {[%clk 0:02:59]} 1... c5 {[%clk 0:02:59.9]} 2. Nf3 {[%clk 0:02:58.4]} 2...
d6 {[%clk 0:03:00.3]} 3. d4 {[%clk 0:02:58.7]} 3... cxd4 {[%clk 0:03:01.2]} 4.
Nxd4 {[%clk 0:02:59.6]} 4... Nf6 {[%clk 0:03:01.5]} 5. Nc3 {[%clk 0:02:59.3]}
5... Bd7 {[%clk 0:03:01.8]} 6. Bg5 {[%clk 0:02:56.9]} 6... e6 {[%clk 0:03:01.7]}
7. Qd2 {[%clk 0:02:55.3]} 7... a6 {[%clk 0:03:01.6]} 8. O-O-O {[%clk 0:02:54.9]}
8... h6 {[%clk 0:03:01.7]} 9. Bxf6 {[%clk 0:02:43.6]} 9... Qxf6 {[%clk
0:03:02.6]} 10. f4 {[%clk 0:02:43]} 10... Nc6 {[%clk 0:02:59]} 11. Nxc6 {[%clk
0:02:31.8]} 11... Bxc6 {[%clk 0:02:59.9]} 12. Bd3 {[%clk 0:02:31.9]} 12... O-O-O
{[%clk 0:02:57]} 13. Qe3 {[%clk 0:02:30.9]} 13... Kb8 {[%clk 0:02:54.5]} 14. g3
{[%clk 0:02:28.6]} 14... Qe7 {[%clk 0:02:51.4]} 15. Qb6 {[%clk 0:02:26.9]} 15...
Qc7 {[%clk 0:02:49.4]} 16. Qxc7+ {[%clk 0:02:26.4]} 16... Kxc7 {[%clk
0:02:50.3]} 17. Rhe1 {[%clk 0:02:27]} 17... g5 {[%clk 0:02:46.7]} 18. a4 {[%clk
0:02:18.3]} 18... Bg7 {[%clk 0:02:41.1]} 19. a5 {[%clk 0:02:11.4]} 19... Bxc3
{[%clk 0:02:36.7]} 20. bxc3 {[%clk 0:02:11.4]} 20... Rhg8 {[%clk 0:02:29.6]} 21.
Rg1 {[%clk 0:02:08.5]} 21... h5 {[%clk 0:02:25.2]} 22. Kb2 {[%clk 0:02:07.6]}
22... d5 {[%clk 0:02:19.5]} 23. e5 {[%clk 0:01:57.4]} 23... h4 {[%clk
0:02:05.9]} 24. fxg5 {[%clk 0:01:49]} 24... Rxg5 {[%clk 0:02:06.8]} 25. gxh4
{[%clk 0:01:49.4]} 25... Rxe5 {[%clk 0:02:05.8]} 26. Rg7 {[%clk 0:01:48.8]}
26... Rd7 {[%clk 0:02:02.6]} 27. Rf1 {[%clk 0:01:48.7]} 27... f5 {[%clk
0:01:58]} 28. Rxd7+ {[%clk 0:01:47.8]} 28... Bxd7 {[%clk 0:01:56.2]} 29. h5
{[%clk 0:01:48.7]} 29... Re3 {[%clk 0:01:55.2]} 30. c4 {[%clk 0:01:17.7]} 30...
d4 {[%clk 0:01:46.6]} 31. Rf4 {[%clk 0:01:14.2]} 31... Rh3 {[%clk 0:01:41.2]}
32. Rxd4 {[%clk 0:01:13.8]} 32... Rxh2 {[%clk 0:01:38.4]} 33. c5 {[%clk
0:01:09.2]} 33... Rxh5 {[%clk 0:01:33.8]} 34. Kb3 {[%clk 0:01:09.6]} 34... e5
{[%clk 0:01:29.1]} 35. Rd6 {[%clk 0:01:07.7]} 35... e4 {[%clk 0:01:28]} 36. Bc4
{[%clk 0:01:07.2]} 36... f4 {[%clk 0:01:26.9]} 37. Bd5 {[%clk 0:01:06.7]} 37...
Rxd5 {[%clk 0:01:25.2]} 38. Rxd5 {[%clk 0:01:05.9]} 38... Be6 {[%clk 0:01:25.6]}
39. c4 {[%clk 0:01:06.4]} 39... Bxd5 {[%clk 0:01:24.5]} 40. cxd5 {[%clk
0:01:07.3]} 40... f3 {[%clk 0:01:25.1]} 0-1

[Event "*** Titled Tuesday Blitz"]
[Site "Chess.com"]
[Date "2020.04.07"]
[Round "6"]
[White "tomozupan"]
[Black "King_of_the_wing"]
[Result "0-1"]
[WhiteElo "2243"]
[BlackElo "2053"]
[TimeControl "180+1"]
[EndTime "14:05:57 PDT"]
[Termination "King_of_the_wing won by resignation"]

1. d4 {[%clk 0:00:31.3]} 1... d5 {[%clk 0:02:58]} 2. c4 {[%clk 0:00:30.9]} 2...
c6 {[%clk 0:02:57.4]} 3. cxd5 {[%clk 0:00:29.4]} 3... cxd5 {[%clk 0:02:57.3]} 4.
Nc3 {[%clk 0:00:30]} 4... Nf6 {[%clk 0:02:56.2]} 5. Nf3 {[%clk 0:00:30.9]} 5...
Nc6 {[%clk 0:02:56.5]} 6. Bf4 {[%clk 0:00:30.8]} 6... a6 {[%clk 0:02:52]} 7. e3
{[%clk 0:00:30.8]} 7... e6 {[%clk 0:02:52.5]} 8. Bd3 {[%clk 0:00:29.9]} 8... Bd6
{[%clk 0:02:52.7]} 9. Ne5 {[%clk 0:00:29.1]} 9... Qc7 {[%clk 0:02:47.3]} 10. O-O
{[%clk 0:00:19.4]} 10... Nxe5 {[%clk 0:02:44.1]} 11. dxe5 {[%clk 0:00:17.4]}
11... Bxe5 {[%clk 0:02:44.8]} 12. Bxe5 {[%clk 0:00:16.8]} 12... Qxe5 {[%clk
0:02:45.3]} 13. Rc1 {[%clk 0:00:15.6]} 13... O-O {[%clk 0:02:44]} 14. Qc2 {[%clk
0:00:15.8]} 14... Bd7 {[%clk 0:02:38.8]} 15. h3 {[%clk 0:00:16]} 15... Rac8
{[%clk 0:02:34.2]} 16. Qb3 {[%clk 0:00:16.1]} 16... Bc6 {[%clk 0:02:20.3]} 17.
Ne2 {[%clk 0:00:15.1]} 17... Qd6 {[%clk 0:02:10.4]} 18. Nd4 {[%clk 0:00:15.2]}
18... b5 {[%clk 0:01:54.7]} 19. Rc2 {[%clk 0:00:15.2]} 19... Bd7 {[%clk
0:01:52.4]} 20. Rfc1 {[%clk 0:00:15.1]} 20... Rxc2 {[%clk 0:01:52.4]} 21. Rxc2
{[%clk 0:00:15.1]} 21... g6 {[%clk 0:01:42.3]} 22. a3 {[%clk 0:00:11.7]} 22...
e5 {[%clk 0:01:37.4]} 23. Ne2 {[%clk 0:00:02.4]} 23... e4 {[%clk 0:01:37.5]} 0-1